bitfinex-derivatives/quotes_SOLF0:USTF0_20260107
["timestamp","ask_amount","ask_price","bid_price","bid_amount"]
[1767786412602,0.3665381,137.94,137.88,85.44]
[1767786412994,0.3665381,137.94,137.86,0.31741505]
[1767786413396,0.32063762,137.93,137.86,0.31741505]
[1767786413897,0.32063762,137.92,137.86,0.31741505]
[1767786414098,0.05555239,137.91,137.86,0.31741505]
[1767786414803,0.37619001,137.91,137.86,0.31741505]
[1767786420812,0.05555239,137.91,137.86,0.31741505]
[1767786421308,0.31301157,137.94,137.86,0.31741505]
[1767786421507,0.31301157,137.94,137.88,0.31599522]
[1767786423910,6.84888707,137.96,137.88,0.31599522]
[1767786424812,6.84888707,137.96,137.91,0.05314771]
[1767786426612,0.32028707,137.95,137.91,0.05314771]
[1767786426814,0.37196532,137.95,137.87,91.9925]
[1767786427315,0.37196532,137.95,137.87,92.31659929]
[1767786429417,0.37196532,137.95,137.88,0.32409929]
[1767786436521,6.90106532,137.95,137.88,0.32409929]
[1767786441524,0.37196532,137.95,137.88,0.32409929]
[1767786442218,0.05167825,137.95,137.89,0.32409929]
[1767786442421,0.05167825,137.95,137.9,0.32409929]
[1767786442621,0.05167825,137.95,137.91,0.32409929]
[1767786443835,6.5278,137.98,137.91,0.32409929]
[1767786444034,0.32028707,137.99,137.91,0.32409929]
[1767786444233,114.5321,138.06,137.93,0.32409929]
[1767786444234,0.32028707,138.01,137.93,0.32409929]
[1767786445340,0.32028707,138.01,137.96,0.051272]
[1767786446637,0.32028707,138.0,137.96,0.051272]
[1767786451042,0.32028707,138.0,137.93,0.32409929]
[1767786451244,6.5264,138.01,137.93,0.32409929]
[1767786451245,0.36816709,137.99,137.93,0.32409929]
[1767786457751,0.04788002,137.99,137.93,0.32409929]
[1767786457943,0.04788002,137.99,137.94,0.31238441]
[1767786481267,1.72509404,138.02,137.95,0.31587266]
[1767786481268,0.31141561,138.02,137.95,0.31587266]
[1767786481567,0.31141561,138.02,137.95,0.36176155]
[1767786481770,0.32047922,138.01,137.95,0.36176155]
[1767786481968,6.5259,138.02,137.95,0.04588889]
[1767786481969,0.32047922,137.99,137.95,0.04588889]
[1767786482170,1.73415765,137.99,137.95,0.04588889]
[1767786482369,0.32047922,137.98,137.92,0.33450083]
[1767786482872,0.37480852,137.98,137.92,0.33450083]
[1767786483074,0.37480852,137.98,137.89,86.83367843]
[1767786483273,0.37480852,137.98,137.9,0.33450083]
[1767786483770,0.32047922,137.98,137.9,0.33450083]
[1767786483970,0.05437769,137.95,137.9,0.33450083]
[1767786495983,0.37485691,137.95,137.9,0.33450083]
[1767786496172,0.05437769,137.95,137.9,0.33450083]
[1767786511900,0.36238287,137.95,137.89,85.7300921]
[1767786514198,0.36238287,137.95,137.9,0.3100921]
[1767786514395,0.05437769,137.95,137.9,0.3100921]
[1767786515696,0.36238287,137.95,137.9,0.3100921]
[1767786528412,0.05437769,137.95,137.9,0.3100921]
[1767786533608,6.83540518,137.99,137.9,0.3100921]
[1767786533809,6.83540518,137.99,137.92,0.3100921]
[1767786534510,0.30800518,137.98,137.92,0.3100921]
[1767786535016,0.30800518,137.98,137.94,0.05348641]
[1767786537122,0.30800518,138.0,137.94,0.36357851]
[1767786540014,0.30800518,137.99,137.94,0.05348641]
[1767786546121,0.30673499,137.98,137.94,0.05348641]
[1767786547622,6.83443499,137.98,137.94,0.05348641]
[1767786551024,0.30673499,137.96,137.9,85.76672721]
[1767786552026,0.30673499,137.95,137.88,0.32672721]
[1767786552613,0.0486731,137.93,137.88,0.32672721]
[1767786555225,0.35540809,137.93,137.88,0.32672721]
[1767786558729,0.35540809,137.93,137.86,0.32672721]
[1767786563031,0.30673499,137.92,137.84,0.32672721]
[1767786563533,0.30673499,137.94,137.84,0.32672721]
[1767786564042,0.30673499,137.94,137.87,0.05425364]
[1767786569528,0.30673499,137.93,137.87,0.05425364]
[1767786571138,0.30673499,137.92,137.87,0.05425364]
[1767786571338,0.30673499,137.92,137.87,0.38098085]
[1767786576645,0.33371557,137.91,137.87,0.05425364]
[1767786577946,0.33371557,137.93,137.87,0.05425364]
[1767786580050,0.33371557,137.92,137.87,0.05425364]
[1767786580944,0.33371557,137.91,137.87,0.05425364]
[1767786587364,0.33371557,137.89,137.81,6.85923264]
[1767786587745,0.33371557,137.89,137.82,0.32403264]
[1767786588556,8.28196027,137.89,137.82,0.32403264]
[1767786588856,0.33371557,137.88,137.82,0.32403264]
[1767786596253,0.33371557,137.86,137.79,0.32403264]
[1767786596462,0.33371557,137.88,137.79,0.32403264]
[1767786596666,0.33371557,137.88,137.81,0.32403264]
[1767786601158,1.4163447,137.9,137.82,0.32717327]
[1767786601159,0.31442607,137.9,137.82,0.32717327]
[1767786601561,0.31442607,137.92,137.84,0.31239612]
[1767786603367,0.31803462,137.91,137.84,0.31239612]
[1767786603560,0.31803462,137.94,137.85,0.31239612]
[1767786603861,0.31803462,137.96,137.89,0.31239612]
[1767786605268,0.31803462,137.98,137.9,0.31239612]
[1767786606064,6.84473462,138.0,137.91,0.31239612]
[1767786609369,0.31803462,137.99,137.91,0.31239612]
[1767786609563,0.31803462,138.01,137.93,0.31239612]
[1767786616179,0.31803462,138.03,137.97,0.31239612]
[1767786633391,0.04679354,138.01,137.97,0.31239612]
[1767786648003,0.04679354,138.01,137.96,91.9483]
[1767786648004,0.31489691,138.05,137.98,0.33001723]
[1767786648198,0.31489691,138.05,137.98,0.38362846]
[1767786649602,0.31489691,138.05,137.98,6.91102846]
[1767786651896,0.31489691,138.05,137.99,0.33001723]
[1767786656308,6.5238,138.06,137.99,0.33001723]
[1767786656702,6.83869691,138.06,137.99,0.33001723]
[1767786657110,6.83869691,138.06,138.01,0.05223564]
[1767786658304,0.31489691,138.06,138.01,0.38225287]
[1767786658500,93.18547934,138.08,138.01,0.38225287]
[1767786658705,9.04547934,138.08,138.01,0.38225287]
[1767786658905,0.31489691,138.07,138.01,0.38225287]
[1767786661911,0.33189934,138.06,138.01,0.05223564]
[1767786662113,0.33189934,138.05,137.97,0.32158945]
[1767786662314,0.38467335,138.05,137.97,0.32158945]
[1767786664012,0.38467335,138.05,137.95,94.34740932]
[1767786664013,0.38467335,138.05,137.95,9.24899877]
[1767786664209,0.33189934,138.02,137.95,0.32158945]
[1767786664514,0.33189934,138.02,137.93,0.32158945]
[1767786664515,2.20748243,138.01,137.93,0.32158945]
[1767786664813,0.38562568,138.0,137.93,0.32158945]
[1767786667414,0.33189934,137.99,137.91,94.66899877]
[1767786667715,0.33189934,137.98,137.91,85.74158945]
[1767786668115,0.0503382,137.96,137.91,85.74158945]
[1767786671118,0.38223754,137.96,137.91,85.42]
[1767786671315,0.38223754,137.96,137.89,0.32158945]
[1767786673717,0.33189934,137.95,137.89,0.32158945]
[1767786678620,0.33189934,137.95,137.87,85.44]
[1767786678813,0.33189934,137.94,137.86,0.32158945]
[1767786679524,0.05550404,137.91,137.86,0.32158945]
[1767786682624,0.38740338,137.91,137.86,0.32158945]
[1767786683213,0.05550404,137.91,137.86,0.32158945]
[1767786686022,0.33189934,138.0,137.89,0.32158945]
[1767786686227,0.33189934,138.0,137.91,0.32158945]
[1767786686425,0.33189934,138.0,137.92,0.32158945]
[1767786687326,0.33189934,138.0,137.95,0.05146147]
[1767786688028,0.33189934,138.03,137.95,0.37305092]
[1767786688728,0.33189934,138.03,137.96,0.32158945]
[1767786689625,0.33189934,138.03,137.98,0.05494482]
[1767786690016,0.33189934,138.03,137.94,0.32158945]
[1767786690017,0.33189934,138.02,137.94,0.32158945]
[1767786690226,0.38405039,138.02,137.94,0.32158945]
[1767786690425,0.33189934,138.0,137.94,0.32158945]
[1767786691328,0.05279563,137.98,137.94,0.32158945]
[1767786691831,0.05279563,137.98,137.92,0.30278381]
[1767786695337,0.36736292,137.98,137.9,0.30278381]
[1767786695632,0.31456729,137.98,137.9,0.30278381]
[1767786695935,0.04558675,137.95,137.9,0.30278381]
[1767786698932,0.04558675,137.95,137.89,0.30278381]
[1767786703340,0.31456729,138.01,137.92,0.30278381]
[1767786703735,0.31456729,138.01,137.94,0.30278381]
[1767786704039,6.83996729,138.03,137.94,0.30278381]
[1767786704934,0.31456729,138.03,137.95,0.30278381]
[1767786705136,0.31456729,138.06,137.96,0.30278381]
[1767786705638,0.31456729,138.06,137.98,0.30278381]
[1767786706026,0.31456729,138.06,138.0,0.05048257]
[1767786706234,6.83866729,138.06,138.0,0.05048257]
[1767786707445,6.83906729,138.05,137.98,0.30278381]
[1767786707644,0.3689014,138.04,137.98,0.30278381]
[1767786713046,0.31456729,138.03,137.96,0.30278381]
[1767786714046,0.04618449,138.01,137.96,0.30278381]
[1767786717350,0.36075178,138.01,137.94,0.30278381]
[1767786717643,1.77386245,138.01,137.94,0.30278381]
[1767786719035,0.04618449,138.01,137.94,1.44]
[1767786719239,0.04618449,138.01,137.96,0.30278381]
[1767786719438,0.04618449,138.01,137.97,0.30278381]
[1767786720644,6.5244,138.05,137.97,0.30278381]
[1767786720845,6.5244,138.05,137.98,0.36075029]
[1767786721146,0.31962825,138.05,137.98,0.36075029]
[1767786721346,6.84312825,138.07,137.98,0.36075029]
[1767786721852,6.84312825,138.07,137.98,0.31305402]
[1767786722546,6.84312825,138.07,138.01,0.04754246]
[1767786727052,6.84312825,138.07,138.01,0.37744561]
[1767786727352,0.30974366,138.09,138.02,0.32990315]
[1767786728358,0.30974366,138.09,138.04,0.04874554]
[1767786728652,0.04622932,138.07,138.04,0.04874554]
[1767786728952,0.04622932,138.07,138.04,0.37864869]
[1767786729152,0.30974366,138.11,138.04,0.37864869]
[1767786734060,0.30974366,138.1,138.04,0.04874554]
[1767786735562,6.83204366,138.1,138.04,0.04874554]
[1767786736668,0.30974366,138.09,138.04,0.04874554]
[1767786750184,0.30974366,138.08,138.04,0.04874554]
[1767786750888,0.30974366,138.07,137.99,6.85660315]
[1767786751188,0.30974366,138.06,137.99,6.85660315]
[1767786751987,0.30974366,138.06,138.0,0.32775107]
[1767786754490,0.30301352,138.08,138.01,0.32775107]
[1767786755786,0.30301352,138.08,138.03,0.04572553]
[1767786763799,0.30301352,138.08,138.03,0.3734766]
[1767786765889,0.30301352,138.11,138.04,0.32775107]
[1767786767596,0.30301352,138.11,138.03,85.4]
[1767786768698,0.30301352,138.1,138.03,85.4]
[1767786769399,0.30301352,138.1,138.03,85.72775107]
[1767786771693,0.30301352,138.1,138.04,0.32775107]
[1767786776807,0.30301352,138.1,138.06,0.05419445]
[1767786779913,0.30301352,138.12,138.06,0.38194552]
[1767786780311,0.30301352,138.15,138.06,0.38194552]
[1767786780805,0.30301352,138.15,138.06,0.32775107]
[1767786781510,0.30301352,138.15,138.09,0.05174746]
[1767786781712,0.30301352,138.14,138.09,0.05174746]
[1767786783013,0.30301352,138.14,138.06,0.32775107]
[1767786783217,0.0538679,138.13,138.06,0.32775107]
[1767786788930,0.36574868,138.13,138.06,0.32775107]
[1767786795336,6.88634868,138.13,138.06,0.32775107]
[1767786797232,0.31188078,138.12,138.06,0.32775107]
[1767786797539,6.83288078,138.12,138.06,0.32775107]
[1767786801042,6.83338078,138.11,138.05,85.4]
[1767786801242,6.83338078,138.11,138.05,85.73157507]
[1767786801844,0.04616356,138.09,138.05,85.73157507]
[1767786804441,0.04616356,138.09,138.05,85.4]
[1767786805345,6.88054434,138.09,138.03,0.33157507]
[1767786805539,0.35804434,138.09,138.01,0.33157507]
[1767786805946,0.31188078,138.09,138.01,85.71157507]
[1767786806247,0.05408961,138.06,138.01,85.71157507]
[1767786807349,0.05408961,138.06,138.02,0.33157507]
[1767786813448,0.05408961,138.06,138.01,85.38]
[1767786813653,6.8902592,138.06,138.0,0.30105123]
[1767786816054,0.3663592,138.06,138.0,0.30105123]
[1767786820464,0.05408961,138.06,138.0,0.30105123]
[1767786829260,0.05408961,138.06,138.0,6.82745123]
[1767786829466,0.05408961,138.06,138.01,0.30105123]
[1767786840761,0.05408961,138.06,138.02,0.31688483]
[1767786840971,0.33059825,138.12,138.04,0.31688483]
[1767786843773,0.33059825,138.12,138.07,0.05425125]
[1767786848378,1.73693011,138.11,138.07,0.05425125]
[1767786848779,0.32469867,138.11,138.07,0.05425125]
[1767786852282,0.37470026,138.1,138.04,6.83545901]
[1767786856878,0.37470026,138.1,138.05,0.31095901]
[1767786868394,0.05000159,138.1,138.05,0.31095901]
[1767786872004,0.35365269,138.1,138.03,85.72078087]
[1767786872303,0.35365269,138.1,138.04,0.30078087]
[1767786875308,0.3036511,138.09,138.04,0.30078087]
[1767786875607,0.3036511,138.09,138.02,0.30078087]
[1767786875802,0.3036511,138.07,138.02,0.30078087]
[1767786876005,0.3036511,138.07,138.0,0.30078087]
[1767786876509,0.04891004,138.06,138.0,0.30078087]
[1767786877311,0.35256114,138.06,138.0,0.30078087]
[1767786881408,0.3036511,138.05,137.98,85.72078087]
[1767786882107,0.04677105,138.03,137.98,0.30078087]
[1767786887304,0.35042215,138.03,137.98,0.30078087]
[1767786893420,0.35042215,138.03,137.96,85.72078087]
[1767786894219,0.04677105,138.03,137.97,0.30078087]
[1767786894527,0.04677105,138.03,137.98,0.30078087]
[1767786923067,0.04677105,138.03,137.99,0.30076977]
[1767786923266,6.5231,138.08,137.99,0.30076977]
[1767786923568,0.31632364,138.09,138.02,0.30076977]
[1767786924563,0.31632364,138.09,138.02,6.82606977]
[1767786924765,0.31632364,138.09,138.03,0.30076977]
[1767786925067,6.5202,138.14,138.03,6.5248]
[1767786925265,0.31632364,138.15,138.05,0.30076977]
[1767786926662,0.31632364,138.15,138.06,0.30076977]
[1767786931174,0.31632364,138.14,138.06,0.30076977]
[1767786931867,0.31381623,138.12,138.06,0.30076977]
[1767786949182,0.31381623,138.11,138.04,0.31929115]
[1767786950275,6.83631623,138.09,138.04,0.31929115]
[1767786950683,84.63381623,138.12,138.04,0.31929115]
[1767786950876,6.83551623,138.11,138.04,0.31929115]
[1767786955890,91.15461623,138.13,138.04,0.31929115]
[1767786956485,0.31381623,138.12,138.04,0.31929115]
[1767786956888,0.31381623,138.12,138.05,0.31929115]
[1767786960888,0.32469909,138.11,138.05,0.31929115]
[1767786961087,7.93247037,138.12,138.01,85.743308]
[1767786961088,1.41137037,138.08,138.01,85.743308]
[1767786961389,0.32469909,138.05,137.98,0.323308]
[1767786962182,0.32469909,138.05,138.0,0.32278298]
[1767786963093,1.73699291,138.07,138.0,0.32278298]
[1767786969895,0.32562254,138.06,138.0,0.32278298]
[1767786973800,0.32562254,138.06,138.0,6.84928298]
[1767786974002,6.84782254,138.1,138.01,0.32278298]
[1767786974499,0.32562254,138.09,138.01,0.32278298]
[1767786975601,0.32562254,138.09,138.02,6.84818298]
[1767786982810,0.32562254,138.09,138.03,0.32278298]
[1767786990219,0.32562254,138.08,138.01,0.32278298]
[1767786992828,0.32562254,138.08,138.02,0.33306012]
[1767786998822,0.31043305,138.07,138.02,0.33306012]
[1767787007927,0.05120763,138.06,138.03,0.04683522]
[1767787022147,0.36306872,138.06,138.03,0.04683522]
[1767787022340,0.36306872,138.06,137.99,0.33321442]
[1767787022539,0.36306872,138.06,137.97,9.26062374]
[1767787022744,0.36306872,138.06,137.97,0.33321442]
[1767787023048,0.31186109,138.06,137.97,0.33321442]
[1767787023642,0.04952987,138.03,137.97,0.33321442]
[1767787032355,0.36139096,138.03,137.97,0.33321442]
[1767787049878,5.41336139,138.02,137.97,0.33321442]
[1767787050080,5.41336139,138.01,137.97,0.33321442]
[1767787050377,0.36139096,138.03,137.97,0.33321442]
[1767787050578,5.41340048,138.02,137.97,0.33321442]
[1767787050883,0.36139096,138.03,137.97,0.33321442]
[1767787051177,5.41366587,138.02,137.97,0.33321442]
[1767787051377,0.36139096,138.03,137.97,0.33321442]
[1767787051577,5.41387677,138.02,137.97,0.33321442]
[1767787051785,0.36139096,138.03,137.97,0.33321442]
[1767787051973,5.41403227,138.02,137.97,0.33321442]
[1767787052167,0.36139096,138.03,137.97,0.33321442]
[1767787052370,5.4140343,138.02,137.97,0.33321442]
[1767787052568,0.04952987,138.03,137.97,6.86111442]
[1767787052874,5.41417521,138.02,137.98,0.31079422]
[1767787053171,0.04952987,138.03,137.98,0.31079422]
[1767787053376,5.41418884,138.02,137.98,0.31079422]
[1767787053575,0.04952987,138.03,137.98,0.31079422]
[1767787054580,0.38091928,138.03,137.96,0.31079422]
[1767787054979,0.33138941,138.03,137.96,0.31079422]
[1767787055382,0.0496687,138.01,137.96,0.31079422]
[1767787058884,0.38105811,138.01,137.96,0.31079422]
[1767787074705,0.38105811,138.01,137.94,0.31079422]
[1767787075706,0.38105811,138.01,137.95,0.31079422]
[1767787087610,0.0496687,138.01,137.96,0.31038723]
[1767787087809,0.30832116,138.05,137.98,0.31038723]
[1767787094111,0.30832116,138.05,137.95,94.40740932]
[1767787094112,0.30832116,138.03,137.96,0.31038723]
[1767787094613,0.30832116,138.03,138.0,0.05255093]
[1767787096111,0.30832116,138.05,138.0,0.05255093]
[1767787096511,0.04619259,138.03,138.0,0.05255093]
[1767787102924,0.35451375,138.03,137.96,0.31038723]
[1767787104321,1.76808438,138.03,137.96,0.31038723]
[1767787105322,0.30832116,138.02,137.96,0.31038723]
[1767787111637,0.31645118,138.0,137.94,0.31038723]
[1767787112339,0.05467092,137.98,137.94,0.31038723]
[1767787141045,0.05467092,137.98,137.95,0.3149881]
[1767787141245,0.33308975,138.02,137.95,0.3149881]
[1767787142047,0.32864433,138.04,137.96,0.32479788]
[1767787142550,0.32864433,138.04,137.97,0.32479788]
[1767787146651,0.32864433,138.04,137.98,0.32479788]
[1767787151065,6.5239,138.06,137.99,0.32479788]
[1767787151066,0.32864433,138.06,137.99,0.32479788]
[1767787154956,0.32864433,138.06,138.0,0.32479788]
[1767787158559,0.32864433,138.06,137.98,0.32479788]
[1767787160665,0.32864433,138.06,137.99,0.32479788]
[1767787161860,6.5234,138.07,137.99,0.32479788]
[1767787162062,0.32864433,138.11,138.0,0.32479788]
[1767787162261,0.32864433,138.1,138.0,0.32479788]
[1767787163262,0.32864433,138.08,138.0,0.32479788]
[1767787164563,0.32864433,138.07,138.0,0.32479788]
[1767787166164,0.32864433,138.06,138.0,0.32479788]
[1767787169665,0.32864433,138.05,138.0,0.32479788]
[1767787173569,0.32864433,138.05,137.97,6.5279]
[1767787173767,0.32864433,138.05,137.98,0.32521498]
[1767787184375,0.31055545,138.07,138.01,0.32521498]
[1767787194597,0.31055545,138.05,137.99,0.32521498]
[1767787198400,0.31055545,138.04,137.97,0.32521498]
[1767787199994,0.31055545,138.04,137.94,0.32521498]
[1767787199995,0.31055545,138.01,137.94,0.32521498]
[1767787203700,0.32022361,138.03,137.95,0.30982548]
[1767787203904,101.4767,138.07,137.98,0.30982548]
[1767787203905,0.32022361,138.06,137.98,0.30982548]
[1767787204499,0.32022361,138.06,138.0,0.30982548]
[1767787206102,0.32022361,138.05,137.97,0.30982548]
[1767787206404,1.41370753,138.07,137.97,0.30982548]
[1767787206405,0.32022361,138.03,137.97,0.30982548]
[1767787212703,8.25843114,138.05,137.97,0.30982548]
[1767787214411,0.32022361,138.05,137.98,0.30982548]
[1767787214707,8.25733114,138.07,137.99,0.30982548]
[1767787215402,0.32022361,138.07,138.0,0.30982548]
[1767787219610,1.73393114,138.07,138.0,0.30982548]
[1767787226314,1.73393114,138.03,137.97,0.30982548]
[1767787227909,0.32022361,138.03,137.97,0.30982548]
[1767787228520,6.84512361,138.04,137.97,0.30982548]
[1767787228717,0.32022361,138.03,137.97,0.30982548]
[1767787231923,0.31274839,138.0,137.94,0.30950471]
[1767787232311,0.31274839,138.02,137.94,0.30950471]
[1767787232923,0.31274839,138.02,137.95,0.30950471]
[1767787234024,0.31274839,138.02,137.96,0.30950471]
[1767787234426,1.72645592,138.04,137.96,0.30950471]
[1767787234725,0.31274839,138.03,137.96,0.30950471]
[1767787236728,0.31274839,138.01,137.94,0.30950471]
[1767787240928,0.31274839,137.98,137.91,0.30950471]
[1767787242236,0.31274839,137.98,137.91,6.84000471]
[1767787242729,0.31274839,137.98,137.92,0.30950471]
[1767787243618,0.31274839,137.98,137.92,6.83970471]
[1767787243820,0.31274839,137.98,137.93,0.30950471]
[1767787244026,1.72645592,138.0,137.93,0.30950471]
[1767787244236,1.72645592,138.0,137.93,6.83920471]
[1767787245734,1.72645592,138.0,137.94,0.30950471]
[1767787245934,1.72645592,138.0,137.94,6.83880471]
[1767787246130,6.83864839,138.02,137.95,0.30950471]
[1767787246428,0.31274839,138.0,137.94,6.5293]
[1767787246636,0.31274839,138.0,137.94,6.83880471]
[1767787251033,0.31274839,137.99,137.91,0.30950471]
[1767787251238,0.31274839,137.98,137.91,0.30950471]
[1767787252535,0.31274839,137.98,137.92,6.5302]
[1767787252729,0.31274839,137.98,137.92,6.83970471]
[1767787254942,1.72645592,137.98,137.92,6.83970471]
[1767787255533,1.72645592,137.98,137.94,0.0493188]
[1767787256037,0.0487814,137.96,137.94,0.0493188]
[1767787260243,0.31274839,137.98,137.94,0.0493188]
[1767787260445,0.32941364,138.0,137.94,0.0493188]
[1767787261144,0.32941364,138.0,137.95,0.33359458]
[1767787264554,0.32941364,138.0,137.94,0.0493188]
[1767787264847,0.32123141,138.02,137.94,0.35336453]
[1767787265554,0.32123141,138.02,137.94,6.88256453]
[1767787266551,0.32123141,138.02,137.94,0.35336453]
[1767787267844,0.32123141,138.01,137.94,0.0493188]
[1767787269539,0.32123141,138.0,137.94,0.0493188]
[1767787273348,0.32123141,138.0,137.94,0.35336453]
[1767787280558,6.5267,138.0,137.94,0.35336453]
[1767787280762,0.32123141,137.99,137.94,0.0493188]
[1767787283156,0.32123141,138.01,137.94,0.35336453]
[1767787283763,0.32123141,138.01,137.95,0.30404573]
[1767787285165,0.32123141,138.03,137.95,0.30404573]
[1767787286060,0.32123141,138.03,137.98,0.05399124]
[1767787313086,0.32123141,138.03,137.98,0.36707533]
[1767787313686,0.33342001,138.05,137.98,0.36707533]
[1767787314296,84.93342001,138.07,138.0,0.31308409]
[1767787314886,84.93342001,138.07,138.01,0.31308409]
[1767787314887,0.33342001,138.07,138.01,0.31308409]
[1767787315086,0.33342001,138.1,138.02,0.36248125]
[1767787315595,0.33342001,138.1,138.02,0.31308409]
[1767787315786,0.33342001,138.1,138.05,0.05047935]
[1767787318098,3.64869436,138.1,138.05,0.05047935]
[1767787318292,0.33342001,138.09,138.01,0.31308409]
[1767787319602,0.33342001,138.08,138.01,0.31308409]
[1767787322003,0.33342001,138.08,137.99,6.5268]
[1767787322202,0.32621882,138.07,137.99,0.31689088]
[1767787324499,1.41288713,138.06,137.99,0.31689088]
[1767787324694,1.73910595,138.06,137.99,0.31689088]
[1767787327302,0.32621882,138.05,137.99,0.31689088]
[1767787329598,0.32621882,138.03,137.97,0.31689088]
[1767787334196,0.32621882,138.05,137.98,0.31689088]
[1767787335314,6.84981882,138.07,137.99,0.31689088]
[1767787335615,0.32621882,138.06,137.99,0.31689088]
[1767787336715,0.32621882,138.06,138.0,0.31689088]
[1767787344715,1.73910595,138.05,138.0,0.31689088]
[1767787354226,0.32549081,138.04,137.99,6.5269]
[1767787355120,0.32549081,138.04,137.99,6.84478667]
[1767787355824,0.32549081,138.06,138.0,0.31788667]
[1767787356027,0.32549081,138.1,138.01,0.31788667]
[1767787356322,0.32549081,138.1,138.04,0.31788667]
[1767787356716,0.32549081,138.1,138.04,6.84228667]
[1767787356920,0.32549081,138.1,138.05,0.31788667]
[1767787365023,0.32549081,138.08,138.02,0.31788667]
[1767787375337,0.32549081,138.1,138.02,0.31788667]
[1767787375534,0.32549081,138.1,138.03,0.31788667]
[1767787376528,0.32549081,138.1,138.04,0.31788667]
[1767787380342,0.32549081,138.1,138.06,0.04811641]
[1767787382242,6.82778581,138.12,138.06,0.34917817]
[1767787383351,0.30658581,138.12,138.06,0.34917817]
[1767787383841,0.05242159,138.1,138.06,0.34917817]
[1767787385146,0.30658581,138.13,138.06,6.57171641]
[1767787385351,0.30658581,138.13,138.07,0.30106176]
[1767787404166,0.30658581,138.13,138.08,0.30106176]
[1767787404373,91.1193,138.16,138.08,0.30106176]
[1767787404565,0.30658581,138.15,138.08,0.30106176]
[1767787404866,0.30658581,138.15,138.11,0.04867075]
[1767787407968,0.30658581,138.14,138.11,0.04867075]
[1767787408165,0.30658581,138.14,138.07,6.5231]
[1767787408166,0.36087208,138.14,138.07,6.5231]
[1767787408373,0.36087208,138.14,138.06,0.30106176]
[1767787409576,6.88107208,138.14,138.09,0.04607383]
[1767787409774,0.30658581,138.13,138.09,0.04607383]
[1767787410370,0.04678541,138.12,138.09,0.04607383]
[1767787430182,0.32215284,138.15,138.09,0.36263747]
[1767787442292,0.32215284,138.15,138.1,0.32839211]
[1767787443302,0.30638686,138.14,138.09,0.04607383]
[1767787446506,1.71753072,138.14,138.09,0.04607383]
[1767787454896,0.30638686,138.14,138.09,0.04607383]
[1767787461706,0.30638686,138.14,138.09,0.37446594]
[1767787469716,6.5197,138.15,138.09,0.37446594]
[1767787469915,6.82608686,138.15,138.09,0.37446594]
[1767787472430,0.30638686,138.15,138.09,0.37446594]
[1767787486335,1.73566028,138.14,138.09,0.37446594]
[1767787493534,0.32451642,138.13,138.09,0.04607383]
[1767787493738,7.93124386,138.14,138.09,0.04607383]
[1767787493739,1.73566028,138.12,138.09,0.04607383]
[1767787493938,0.32451642,138.12,138.09,0.04607383]
[1767787502941,0.30892992,138.15,138.09,0.04607383]
[1767787503443,0.30892992,138.15,138.08,0.31239925]
[1767787503645,0.30892992,138.15,138.11,0.04557942]
[1767787504642,0.30892992,138.17,138.11,0.04557942]
[1767787508638,2.20367348,138.24,138.17,6.5183]
[1767787508840,151.430685,199.17,138.14,101.4215]
[1767787508841,101.3088,138.3,138.18,0.31239925]
[1767787509046,84.64,138.3,138.2,0.31239925]
[1767787509248,84.64,138.3,138.21,6.54258622]
[1767787509444,84.64,138.3,138.23,0.0545348]
[1767787509746,84.64,138.3,138.24,5.87509376]
[1767787510045,84.64,138.3,138.23,0.0545348]
[1767787510438,1.44,138.29,138.18,0.31239925]
[1767787510645,2.20367348,138.25,138.16,0.31239925]
[1767787510845,84.64,138.24,138.14,0.31239925]
[1767787511044,84.64,138.24,138.15,6.5194]
[1767787514350,84.64,138.24,138.15,6.83179925]
[1767787514643,84.62,138.23,138.15,6.83179925]
[1767787516249,84.62,138.22,138.15,6.83179925]
[1767787519254,84.62,138.23,138.15,6.83179925]
[1767787522048,84.62,138.23,138.13,6.83269925]
[1767787522456,84.62,138.23,138.14,0.31239925]
[1767787523557,91.1359,138.23,138.14,0.31239925]
[1767787528461,8.72007348,138.22,138.13,6.5203]
[1767787534164,6.5168,138.21,138.13,6.5203]
[1767787534468,2.20367348,138.17,138.1,0.32691849]
[1767787534866,84.62,138.16,138.1,0.32691849]
[1767787535069,84.62,138.16,138.12,0.04974519]
[1767787537266,0.04977576,138.15,138.12,0.04974519]
[1767787546173,0.04977576,138.15,138.07,110.39830932]
[1767787546174,0.04977576,138.15,138.08,6.74342092]
[1767787546477,0.04977576,138.15,138.08,7.07033941]
[1767787546676,84.64,138.14,138.08,7.07033941]
[1767787547368,84.64,138.14,138.08,0.32691849]
[1767787547563,84.64,138.14,138.07,6.74342092]
[1767787547769,84.64,138.14,138.06,13.59373941]
[1767787548366,0.05402284,138.11,138.06,13.59373941]
[1767787548674,84.64,138.1,138.06,13.59373941]
[1767787549382,84.64,138.1,138.06,7.07033941]
[1767787549574,84.64,138.1,138.04,13.59483941]
[1767787556488,84.64,138.1,138.04,6.85141849]
[1767787562193,84.64,138.1,138.04,6.5245]
[1767787562381,84.64,138.1,138.05,0.31686392]
[1767787563788,2.20367348,138.06,137.99,8.26007642]